Cogmind - Beta 9.6 @@@ ROGUE MODE // 2020.07.10 @ 14:38:10 Player: Zeldest Result: Destroyed by S-10 Pest with Light Assault Rifle Performance ------------- Evolutions (1) 500 Regions Visited (3) 600 Robots Destroyed (17) 85 Value Destroyed (305) 305 Prototype IDs (0) 0 Alien Tech Used (0) 0 Bonus (0) 0 TOTAL SCORE: 1490 Bonus ------- None Cogmind --------- Core Integrity 0/400 Matter 295/300 Energy 95/100 System Corruption 0% Temperature Cool (0) Movement Core (150) Ox2 Location -9/Materials Parts ------- > --- POWER (1) -------- (None) > --- PROPULSION (2) --- (None) > --- UTILITY (4) ------ Small Storage Unit Improved Signal Interpreter Utility Shielding > --- WEAPON (2) ------- Flail Flail > --- INVENTORY (6) ---- Sensor Array Datajack Flail Peak State ------------ > --- POWER ------------ Light Nuclear Core > --- PROPULSION ------- Improved Treads Improved Treads > --- UTILITY ---------- Small Storage Unit Sensor Array Improved Signal Interpreter Utility Shielding > --- WEAPON ----------- Flail Flail > --- INVENTORY -------- Ion Engine Sensor Array Core Shielding Datajack Flail Flail [Rating: 16] Favorites ----------- Power Ion Engine Engine Ion Engine Power Core Light Nuclear Core Propulsion Improved Treads Treads Improved Treads Leg Aluminum Leg Utility Small Storage Unit Device Sensor Array Storage Small Storage Unit Processor Improved Signal Interpreter Protection Utility Shielding Weapon Flail Energy Gun Medium Laser Impact Weapon Flail Build | -11 -10 -10 -9 ------- Run | Scr Mat Min Mat Slots Evolved 2 | . . . 2 Power . | . . . . Propulsion . | . . . . Utility 2 | . . . 2 Weapon . | . . . . Parts Attached 25 | 7 9 2 7 Power 4 | 1 . 2 1 Engine 3 | 1 . 2 . Core 1 | . . . 1 Reactor . | . . . . Propulsion 9 | 4 5 . . Treads 7 | 2 5 . . Leg 2 | 2 . . . Wheel . | . . . . Hover . | . . . . Flight . | . . . . Utility 7 | 1 2 . 4 Device 2 | . 2 . . Storage 1 | 1 . . . Processor 1 | . . . 1 Hackware . | . . . . Protection 3 | . . . 3 Artifact . | . . . . Weapon 5 | 1 2 . 2 Energy Gun 1 | 1 . . . Energy Cannon . | . . . . Ballistic Gun . | . . . . Ballistic Cannon . | . . . . Launcher . | . . . . Special Weapon . | . . . . Impact Weapon 4 | . 2 . 2 Slashing Weapon . | . . . . Piercing Weapon . | . . . . Special Melee Weapon . | . . . . Unidentified Prototypes . | . . . . Parts Lost 6 | . . . 6 Power 1 | . . . 1 Propulsion 2 | . . . 2 Utility 2 | . . . 2 Weapon 1 | . . . 1 Highest Loss Streak 4 | . . . 4 Average Slot Usage (%) 95 | . 95 100 94 Engine 11 | . 14 14 7 Treads 24 | . 27 28 19 Device 12 | . 13 14 9 Storage 12 | . 14 14 11 Processor 3 | . . . 10 Protection 4 | . . . 12 Energy Gun 1 | . 2 . . Impact Weapon 23 | . 22 28 22 Naked Turns . | . . . . Heaviest Build 16 | 11 14 14 16 Greatest Support 46 | 40 46 46 46 Greatest Overweight (x) 3 | 1 . . 3 Average Overweight (x) . | . . . . Largest Inventory Capacity 6 | 6 6 6 6 Average Capacity 5 | 5 6 6 6 Most Carried 6 | 4 6 6 6 Average Carried 5 | 2 5 6 4 Final Capacity 6 | 6 6 6 6 Final Carried 6 | 3 6 6 3 Class Distribution -------------------- 100% | Mutant Dominant Class ---------------- Mutant | -10/Materials Mutant | -10/Mines Mutant | -9/Materials Resources | -11 -10 -10 -9 ----------- Run | Scr Mat Min Mat Matter Collected 440 | 258 62 60 60 Remotely 62 | . 62 . . Salvage Created 467 | 81 113 140 133 Parts 27 | . 7 14 6 Haulers Intercepted . | . . . . Recyclers Shooed . | . . . . Parts Field Recycled . | . . . . Retrieved Matter . | . . . . Parts Self-Destructed . | . . . . Prevented . | . . . . Kills | -11 -10 -10 -9 ------- Run | Scr Mat Min Mat Combat Hostiles Destroyed 15 | . 6 5 4 Melee 11 | . 2 5 4 Guns 3 | . 3 . . Classes Destroyed 5 | 1 2 1 1 Recycler 1 | 1 . . . Operator 1 | . 1 . . Swarmer 11 | . 6 3 2 Grunt 3 | . . 2 1 Sentry 1 | . . . 1 Best Kill Streak 4 | 1 4 2 2 Combat Bots Only 3 | . 3 2 2 Max Kills in Single Turn 1 | 1 1 1 1 Gunslinging . | . . . . Exploded . | . . . . Melee 1 | . 1 1 1 Uniques/NPCs Destroyed . | . . . . Combat | -11 -10 -10 -9 -------- Run | Scr Mat Min Mat Damage Taken 1460 | . 323 192 945 Core 454 | . 36 16 402 Absorbed by Shields . | . . . . Core Remaining (%) 89 | 100 . 79 . Volleys Fired 18 | 9 9 . . Largest 1 | 1 1 . . Hottest 50 | 50 50 . . Shots Fired 18 | 9 9 . . Gun 18 | 9 9 . . Cannon . | . . . . Launcher . | . . . . Special . | . . . . Kinetic . | . . . . Thermal 18 | 9 9 . . Explosive . | . . . . Electromagnetic . | . . . . Robot Hit Streak 7 | 4 7 . . Robot Miss Streak 1 | 1 1 . . Penetration Max . | . . . . Secondary Targets . | . . . . Shots Hit Robots 57 | 8 17 8 24 Core Hits 19 | 2 7 5 5 Critical Hits . | . . . . Critical Kills . | . . . . Critical Parts Destroyed . | . . . . Melee Attacks 56 | . 11 13 32 Impact 56 | . 11 13 32 Slashing . | . . . . Piercing . | . . . . Sneak Attacks . | . . . . Combat Hostiles . | . . . . Follow-up Attacks 9 | . 1 1 7 Damage Inflicted 1021 | 87 294 166 474 Guns 185 | 87 98 . . Cannons . | . . . . Explosions . | . . . . Melee 836 | . 196 166 474 Ramming . | . . . . Kinetic . | . . . . Thermal 185 | 87 98 . . Explosive . | . . . . Electromagnetic . | . . . . Impact 836 | . 196 166 474 Slashing . | . . . . Piercing . | . . . . Highest Corruption 1 | . 1 1 . Average Corruption 1 | . 1 1 . Corruption Purged . | . . . . Overload Shots . | . . . . Overflow Damage 44 | . 17 . 27 Projectiles . | . . . . Explosions . | . . . . Melee 44 | . 17 . 27 Knockbacks 4 | . 2 1 1 Impact 4 | . 2 1 1 Kinetic . | . . . . Secondary . | . . . . Self-Inflicted Damage . | . . . . Shots . | . . . . Rammed . | . . . . Targets Rammed . | . . . . Kicked . | . . . . Crushed . | . . . . Highest Temperature 70 | 70 50 . . Average Temperature 26 | 30 21 . . Received Heat Transfer 204 | . . 63 141 Siege Activations . | . . . . Robots Corrupted . | . . . . Combat Hostiles . | . . . . Parts Fried . | . . . . Impact Corruptions 6 | . 2 . 4 Robots Melted . | . . . . Combat Hostiles . | . . . . Parts Melted 2 | . 2 . . Heat Transferred 555 | 259 296 . . Parts Sabotaged . | . . . . Parts Stolen . | . . . . Parts Stripped . | . . . . Power Chain Reactions . | . . . . Missiles Intercepted . | . . . . Alert | -11 -10 -10 -9 ------- Run | Scr Mat Min Mat Peak Influence 211 | 5 211 124 108 Average Influence 73 | 1 90 68 65 Maximum Alert Level 1 | . 1 . . Low Security (%) 99 | 100 99 100 100 Level 1 . | . . . . Level 2 . | . . . . Level 3 . | . . . . Level 4 . | . . . . Level 5 . | . . . . High Security . | . . . . Max Security . | . . . . Squads Dispatched 3 | . 2 . 1 Investigation . | . . . . Extermination . | . . . . Reinforcement 3 | . 2 . 1 Assault . | . . . . Garrison . | . . . . Intercept . | . . . . Construction Impeded . | . . . . Haulers Reinforced . | . . . . Stealth | -11 -10 -10 -9 --------- Run | Scr Mat Min Mat Distress Signals 2 | . 1 . 1 Communications Jammed . | . . . . Distress Signals . | . . . . Times Spotted 33 | . 13 6 14 Peak Tracking Total 6 | . 4 3 6 Tactical Retreats 6 | . 1 1 4 Traps | -11 -10 -10 -9 ------- Run | Scr Mat Min Mat Traps Triggered 1 | . 1 . . Indirectly . | . . . . Trap Hack Attempts . | . . . . Triggered . | . . . . Disarmed . | . . . . Reprogrammed . | . . . . Reused . | . . . . Traps Extracted . | . . . . Installed . | . . . . Triggered . | . . . . Machines | -11 -10 -10 -9 ---------- Run | Scr Mat Min Mat Machines Disabled . | . . . . Max in Single Turn . | . . . . Machines Sabotaged . | . . . . Garrisons Compromised . | . . . . Overloaded Fab Kills . | . . . . Fab Network Shutdowns . | . . . . Hacking | -11 -10 -10 -9 --------- Run | Scr Mat Min Mat Machines Accessed 2 | . 1 . 1 Terminals 1 | . . . 1 Fabricators . | . . . . Repair Stations 1 | . 1 . . Recycling Units . | . . . . Scanalyzers . | . . . . Garrison Access . | . . . . Total Hacks 9 | . 7 . 2 Successful 5 | . 3 . 2 Failed 4 | . 4 . . Catastrophic . | . . . . Database Lockouts . | . . . . Manual . | . . . . Terminals 2 | . . . 2 Fabricators . | . . . . Repair Stations 7 | . 7 . . Recycling Units . | . . . . Scanalyzers . | . . . . Garrison Access . | . . . . Terminal Hacks 2 | . . . 2 Record 2 | . . . 2 Fabricator Hacks . | . . . . Repair Station Hacks 3 | . 3 . . Scan Component 2 | . 2 . . Repair 1 | . 1 . . Recycling Unit Hacks . | . . . . Scanalyzer . | . . . . Garrison Access Hacks . | . . . . Unauthorized Hacks . | . . . . Terminals . | . . . . Fabricators . | . . . . Repair Stations . | . . . . Recycling Units . | . . . . Scanalyzers . | . . . . Garrison Access . | . . . . Data Cores Recovered . | . . . . Used . | . . . . Hacking Detections 1 | . 1 . . Full Trace Events . | . . . . Feedback Events . | . . . . Feedback Blocked . | . . . . Robot Schematics Acquired . | . . . . Robots Built . | . . . . Matter . | . . . . Time . | . . . . Total Robot Build Rating . | . . . . Part Schematics Acquired . | . . . . Parts Built . | . . . . Matter . | . . . . Time . | . . . . Total Part Build Rating . | . . . . Parts Repaired 1 | . 1 . . Time 32 | . 32 . . Parts Recycled . | . . . . Recycled Matter . | . . . . Retrieved Matter . | . . . . Retrieved Components . | . . . . Parts Scanalyzed . | . . . . Part Schematics Acquired . | . . . . Parts Damaged . | . . . . Bothacking | -11 -10 -10 -9 ------------ Run | Scr Mat Min Mat Used RIF Installer . | . . . . Robots Hacked . | . . . . Non-combat . | . . . . Combat . | . . . . Robot Hacks Applied . | . . . . Relay Couplers Released . | . . . . Robots Rewired . | . . . . Allies Hacked . | . . . . Hacks Repelled . | . . . . Allies | -11 -10 -10 -9 -------- Run | Scr Mat Min Mat Total Allies . | . . . . Largest Group . | . . . . Highest-Rated Group . | . . . . Highest-Rated Ally . | . . . . Total Orders . | . . . . Ally Attacks . | . . . . Total Damage . | . . . . Kills . | . . . . Allies Corrupted . | . . . . Allies Melted . | . . . . Intel | -11 -10 -10 -9 ------- Run | Scr Mat Min Mat Robot Analysis Total . | . . . . Derelict Logs Recovered 1 | . . 1 . Drone Launches . | . . . . Drone Recoveries . | . . . . Exploration | -11 -10 -10 -9 ------------- Run | Scr Mat Min Mat Turns Passed 1362 | 87 617 206 452 Spaces Moved 643 | 48 317 108 170 Core 33 | 21 . . 12 Treads 610 | 27 317 108 158 Legs . | . . . . Wheels . | . . . . Hover . | . . . . Flight . | . . . . Fastest Speed 50 | 50 160 160 150 Average Speed 157 | 115 160 160 162 Slowest Speed 200 | 160 160 160 200 Overloaded Moves . | . . . . Propulsion Burnouts . | . . . . Robots Hopped . | . . . . Cave-ins Triggered . | . . . . Exploration Rate (%) 24 | 5 50 28 15 Regions Visited 3 Branch Regions 1 Pre-discovered Areas . | . . . . Known Exits Taken . | . . . . Unknown Exits Taken 3 | 1 1 1 . Scrap Searched . | . . . . Spaces Dug . | . . . . Terrain Destroyed . | . . . . Melee . | . . . . Projectile . | . . . . AOE . | . . . . Actions | -11 -10 -10 -9 --------- Run | Scr Mat Min Mat Total 906 | 69 405 125 307 Wait 141 | . 36 3 102 Move 640 | 47 316 107 170 Hop . | . . . . Pick Up 23 | 6 15 . 2 Fast Attach 3 | 2 1 . . Attach 10 | 3 3 . 4 Detach . | . . . . Swap 12 | 2 5 2 3 Drop 13 | . 10 2 1 Fire 18 | 9 9 . . Melee 46 | . 10 11 25 Ram . | . . . . Kick . | . . . . Crush . | . . . . Escape Stasis . | . . . . Rewire . | . . . . Trap . | . . . . Miscellaneous . | . . . . Route ------- -11/Scrapyard -10/Materials (discovered 2 exits: *Mat / [*Min]) -10/Mines -9/Materials (discovered 1 exit: Sto) History --------- Turn | Location | Event 2 | -11/Scrapyard | Met Revision 17 8 | -11/Scrapyard | Discovered new exit (range 14) 88 | -11/Scrapyard | Entered Materials 313 | -10/Materials | Build established: Mutant 333 | -10/Materials | Discovered new exit (range 15) 441 | -10/Materials | Repaired Imp. Treads 655 | -10/Materials | Discovered new exit (range 16) 705 | -10/Materials | Entered Mines 898 | -10/Mines | Received a Rocket Launcher from a helpful Derelict 904 | -10/Mines | Discovered new exit (range 5) 911 | -10/Mines | Entered Materials 911 | -9/Materials | Evolved 2 slots: Utility x2 912 | -9/Materials | Identified exit to Storage 1330 | -9/Materials | Core integrity fell below 50% 1339 | -9/Materials | Lost 4 parts (1p2n1u) 1358 | -9/Materials | Core integrity fell below 20% 1363 | -9/Materials | Destroyed by S-10 Pest with Light Assault Rifle Last Messages --------------- Sensor Array destroyed. K-01 Serf cleans the Integration Channel. Destroyed Flight Unit. S-10 Pest system corrupted by crushing effect. K-01 Serf cleans the Integration Channel. S-10 Pest destroyed. Acquired 16 matter. Y-45 Defender misfires. K-01 Serf cleans the Integration Channel. Y-45 Defender destroyed. Acquired 4 matter. Flail follow-up attack on S-10 Pest. Destroyed Flight Unit. S-10 Pest system corrupted by crushing effect. S-10 Pest knocked back. S-10 Pest misfires. Flail follow-up attack on S-10 Pest. Flail destroyed. Core Shielding destroyed. S-10 Pest destroyed. Map ----- +----------------------------------------------------+ | ?????????????????????????????????????????????????? | | ?????????????????????????????????????????????????? | | ?????????????????????????????????????????????????? | | ?????????????????????????????????????????????????? | | ?????????????????????????????????????????????????? | | ????????????????????????????????????##+##????????? | | ????????????????????????????????????# ????????? | | ????????????????????????????????##### #########? | | ????????????????????????????????? # T #? | | ?????????????????????????????????# # #? | | ?????????????????????????????????# # """ #? | | ?????????????????????????????????# # """ #? | | ?????????????????????????????????# # """ ## | | ?????????????????????????????????# # # | | ?????????????????????????????????# # """ +% | | ?????????????????????????????????# #* """ # | | ?????????????????????????????????# !+% """ # | | ?????????????????????????????????# [#= # | | ?????????????????????????????????# # # | | ??????????????????????############+# ########## | | ??????????????????????# # | | ????????????? ? ??????# """"" # | | ???????????? "????# """"""""" + """"""" "" | | ????????????? ""???# g""" """ # """"""" "" | | ?????????????? ??# %!%u # """"""" "" | | ??????????????? ?###@########### """"""" | | ???????????????? """ ### #??????? # """"""" | | ???????????????? """ s###??? # | | ???????????? """ ## """ + | | ?????????? + """ # """"""" "" | | ?????????? ## """ # """"""" "" | | ?????????? ! #?? # """"?"" "" | | ??????????? ################????#### "????"" ?"" | | ????????????????????????????????????? "?????????? | | ?????????????????????????????????????? ?????????? | | ?????????????????????????????????????? ?????????? | | ?????????????????????????????????????? ??????????? | | ?????????????????????????????????????????????????? | | ?????????????????????????????????????????????????? | | ?????????????????????????????????????????????????? | | ?????????????????????????????????????????????????? | | ?????????????????????????????????????????????????? | | ?????????????????????????????????????????????????? | | ?????????????????????????????????????????????????? | | ?????????????????????????????????????????????????? | | ?????????????????????????????????????????????????? | | ?????????????????????????????????????????????????? | | ?????????????????????????????????????????????????? | | ?????????????????????????????????????????????????? | | ?????????????????????????????????????????????????? | +----------------------------------------------------+ Best States ------------- Heat Dissipation 28 Energy Generation 14 Energy Capacity 250 Matter Stores 300 Matter Capacity 300 Sight Range 16 Robot Scan Range 10 Terrain Scan Density 10 Core Shielding 20 Utility Shielding 33 Evasion (%) 50 Recoil Reduction 2 Item Schematics ----------------- None Robot Schematics ------------------ None Fabricated ------------ Nothing Alien Tech Used ----------------- None Achievements -------------- None Challenges ------------ None Game ------ Seed ChargeAssemblyNanoactuators Manual? 0 Play Time 00:18:35 Cumulative 7.8 hours Start 2020.07.10 @ 14:15:20 End 2020.07.10 @ 14:38:10 Sessions 1 Manual Loads 0 Difficulty Rogue Special Mode None Game No. 20 Rogue 20 Adventurer 0 Explorer 0 Win Type - Total 0 Types 0/0/0/0/0/0/0 Lore% 5 Gallery% 16 Achievement% 9 Wizard Run 0 Options --------- ASCII 0 Keyboard 0 Movement Numpad Keybinds 0 Fullscreen 1 Font 18/SmallcapsGlow Map View 76x50 Tactical HUD 0 Map Filters NONE Filters NONE Steam 1 RUN: 6f2ff7f8-35d8-4113-9397-ff9f808fd025